bitfinex-derivatives/quotes_BTCF0:USTF0_20220102
["timestamp","ask_amount","ask_price","bid_price","bid_amount"]
[1641127761398,0.69564822,47359.0,47358.0,0.53037197]
[1641127761799,0.27334,47359.0,47358.0,0.53037197]
[1641127762001,0.27334,47359.0,47358.0,0.34337197]
[1641127762702,0.46334,47359.0,47358.0,0.34337197]
[1641127762903,0.60367567,47359.0,47358.0,0.34337197]
[1641127763103,1.20377716,47359.0,47353.0,0.34337197]
[1641127763503,0.18,47358.0,47353.0,0.34337197]
[1641127763702,0.93043716,47359.0,47353.0,0.34337197]
[1641127764102,0.74043716,47359.0,47354.0,0.009794]
[1641127764304,0.3596313,47357.0,47354.0,0.08819243]
[1641127764505,0.3596313,47357.0,47355.0,0.11997978]
[1641127764704,0.3596313,47357.0,47355.0,2.69108424]
[1641127764904,0.3596313,47357.0,47356.0,0.01199843]
[1641127765105,0.74043716,47359.0,47356.0,0.81362987]
[1641127765306,0.14033567,47359.0,47356.0,0.81362987]
[1641127765508,0.14033567,47359.0,47356.0,0.82274336]
[1641127765705,0.14033567,47359.0,47356.0,0.80163144]
[1641127765909,0.18,47358.0,47356.0,0.80163144]
[1641127766108,0.26159,47358.0,47356.0,0.80163144]
[1641127766708,0.45659,47358.0,47356.0,0.80163144]
[1641127767011,1.05669149,47358.0,47355.0,0.34409142]
[1641127767208,0.18,47356.0,47355.0,0.34409142]
[1641127768013,0.87669149,47358.0,47354.0,0.34409142]
[1641127768014,0.60010149,47357.0,47354.0,0.34409142]
[1641127768812,0.35974098,47355.0,47354.0,0.50609142]
[1641127769614,0.35974098,47356.0,47354.0,0.50609142]
[1641127770015,0.35974098,47356.0,47354.0,0.34409142]
[1641127770415,0.35974098,47356.0,47355.0,0.34409142]
[1641127770818,0.52774098,47356.0,47355.0,0.34409142]
[1641127771220,0.76810149,47356.0,47354.0,0.186]
[1641127772017,0.35987901,47355.0,47348.0,0.02111532]
[1641127772418,0.35987901,47355.0,47349.0,0.1319849]
[1641127772619,0.35987901,47355.0,47352.0,0.02111377]
[1641127773019,0.14033567,47354.0,47353.0,0.1319849]
[1641127774820,0.35987901,47357.0,47353.0,0.3357789]
[1641127775022,0.35987901,47357.0,47353.0,0.5157789]
[1641127775223,0.35987901,47357.0,47354.0,0.1319849]
[1641127775622,0.35987901,47357.0,47355.0,0.01199863]
[1641127775825,0.50021468,47359.0,47355.0,0.1319849]
[1641127776422,0.50021468,47359.0,47356.0,0.15309666]
[1641127776824,0.14033567,47359.0,47357.0,0.1319849]
[1641127777221,0.14033567,47359.0,47358.0,0.01199863]
[1641127777522,0.14033567,47359.0,47358.0,0.1319849]
[1641127777721,0.14033567,47359.0,47358.0,0.11998627]
[1641127777921,0.14033567,47359.0,47358.0,0.13198374]
[1641127778121,0.14033567,47359.0,47357.0,0.11998627]
[1641127778321,0.14033567,47359.0,47358.0,0.11998627]
[1641127778721,0.14033567,47359.0,47357.0,0.31498627]
[1641127778921,0.50021468,47359.0,47358.0,0.13198375]
[1641127779622,0.14033567,47359.0,47358.0,0.13198375]
[1641127780722,0.14033567,47359.0,47358.0,0.193]
[1641127782124,0.14033567,47359.0,47358.0,0.80226587]
[1641127782823,0.14033567,47359.0,47358.0,0.99426587]
[1641127783623,0.74043716,47359.0,47358.0,0.99426587]
[1641127784028,0.74043716,47359.0,47358.0,0.80226587]
[1641127784426,0.14033567,47359.0,47358.0,0.80226587]
[1641127784828,0.14033567,47359.0,47358.0,0.99526587]
[1641127786727,0.14033567,47359.0,47358.0,1.18826587]
[1641127787831,0.14033567,47359.0,47358.0,1.30824085]
[1641127788330,0.14033567,47359.0,47358.0,0.92224085]
[1641127788731,0.14033567,47359.0,47358.0,1.11524085]
[1641127789133,0.14033567,47359.0,47358.0,0.193]
[1641127789332,0.50018644,47359.0,47358.0,0.193]
[1641127789945,0.14033567,47359.0,47358.0,0.193]
[1641127790147,0.14033567,47359.0,47358.0,0.99546421]
[1641127790348,0.74043716,47359.0,47358.0,0.99546421]
[1641127790546,0.92043716,47359.0,47358.0,0.99546421]
[1641127790745,0.92043716,47359.0,47358.0,0.98946421]
[1641127790746,1.10443716,47359.0,47358.0,0.98946421]
[1641127791147,0.50433567,47359.0,47358.0,0.98946421]
[1641127791346,0.59433835,47359.0,47358.0,0.76030952]
[1641127792147,0.41033835,47359.0,47358.0,0.57330952]
[1641127792746,0.59933835,47359.0,47358.0,0.57330952]
[1641127793147,0.81931066,47359.0,47358.0,0.57330952]
[1641127793747,0.81931066,47359.0,47357.0,0.57330952]
[1641127794147,0.63031066,47359.0,47357.0,0.57330952]
[1641127794547,0.09000268,47358.0,47357.0,0.91779923]
[1641127794750,0.09000268,47358.0,47357.0,0.34448971]
[1641127795949,0.09000268,47358.0,47354.0,0.80246421]
[1641127796149,0.09000268,47358.0,47356.0,0.80246421]
[1641127796751,0.25700268,47358.0,47357.0,0.80246421]
[1641127797455,0.25700268,47358.0,47356.0,0.184]
[1641127798155,0.09000268,47358.0,47349.0,1.46163415]
[1641127798358,0.59996133,47357.0,47349.0,1.46163415]
[1641127798556,0.59996133,47357.0,47349.0,1.39566415]
[1641127798755,0.59996133,47357.0,47350.0,0.13198154]
[1641127798955,0.35998712,47354.0,47350.0,0.13198154]
[1641127799157,0.35998712,47354.0,47351.0,0.01199834]
[1641127799355,0.35998712,47354.0,47351.0,0.13198154]
[1641127799956,0.35998712,47353.0,47352.0,0.13198154]
[1641127800756,0.35998712,47353.0,47352.0,0.32798154]
[1641127802060,0.35998712,47353.0,47352.0,0.13198154]
[1641127802558,0.35998712,47355.0,47352.0,0.13198154]
[1641127802758,0.35998712,47355.0,47352.0,0.32598154]
[1641127802958,0.35998712,47355.0,47353.0,0.13198154]
[1641127803362,0.35998712,47355.0,47354.0,0.1199832]
[1641127803961,0.35998712,47355.0,47353.0,0.1199832]
[1641127804260,0.35998712,47356.0,47354.0,0.1199832]
[1641127804861,0.44798712,47356.0,47354.0,0.194]
[1641127805066,0.35998712,47355.0,47354.0,0.99871093]
[1641127806165,0.35998712,47355.0,47354.0,0.80471093]
[1641127806868,0.47898712,47355.0,47354.0,0.99571093]
[1641127807970,0.119,47355.0,47354.0,0.191]
[1641127808172,0.59996133,47356.0,47353.0,0.80471093]
[1641127808870,0.35986674,47354.0,47353.0,0.186]
[1641127809680,0.35986674,47354.0,47353.0,0.19799858]
[1641127810180,0.35986674,47354.0,47353.0,0.01199858]
[1641127810582,0.35986674,47355.0,47350.0,0.01199858]
[1641127810779,0.35986674,47355.0,47353.0,0.20699858]
[1641127811181,0.35986674,47355.0,47353.0,0.195]
[1641127812181,0.35986674,47355.0,47349.0,0.009794]
[1641127812483,0.35986674,47355.0,47350.0,0.01199858]
[1641127812881,0.49786674,47355.0,47350.0,0.01199858]
[1641127813283,0.35986674,47354.0,47350.0,0.01199858]
[1641127814082,0.138,47355.0,47350.0,0.01199858]
[1641127814083,0.49786674,47355.0,47350.0,0.01199858]
[1641127814881,0.35986674,47355.0,47350.0,0.20599858]
[1641127815184,0.35986674,47355.0,47351.0,0.01199858]
[1641127815683,0.59996133,47357.0,47351.0,0.01199858]
[1641127815684,0.35986674,47356.0,47351.0,0.01199858]
[1641127816583,0.35986674,47356.0,47350.0,0.01199858]
[1641127817085,0.35986674,47356.0,47351.0,0.194]
[1641127817483,0.35986674,47355.0,47352.0,0.01199858]
[1641127818385,0.35986674,47356.0,47352.0,0.01199858]
[1641127818584,0.35986674,47356.0,47350.0,0.01199858]
[1641127818984,0.35986674,47356.0,47352.0,0.196]
[1641127819386,0.35986674,47356.0,47353.0,0.01199858]
[1641127820189,0.35986674,47356.0,47354.0,0.11998404]
[1641127820986,0.35986674,47356.0,47354.0,0.31498404]
[1641127821190,0.35986674,47355.0,47354.0,0.195]
[1641127821887,0.35986674,47355.0,47354.0,0.20699815]
[1641127822088,0.35986674,47355.0,47354.0,0.01199815]
[1641127822490,0.35986674,47356.0,47350.0,0.01199815]
[1641127822693,0.35986674,47356.0,47354.0,0.01199815]
[1641127822890,0.35986674,47356.0,47354.0,0.20699815]
[1641127823089,0.35986674,47356.0,47354.0,0.195]
[1641127823390,0.35986674,47355.0,47354.0,0.195]
[1641127824207,0.35986674,47355.0,47351.0,0.14033567]
[1641127824607,0.35986674,47355.0,47352.0,0.01199821]
[1641127825009,0.35986674,47356.0,47352.0,0.01199821]
[1641127825909,0.35986674,47356.0,47355.0,0.80600649]
[1641127826308,0.35986674,47356.0,47355.0,0.8180047]
[1641127826510,0.35986674,47356.0,47355.0,0.01199821]
[1641127826911,0.35986674,47357.0,47355.0,0.20599821]
[1641127827109,0.35986674,47357.0,47355.0,0.194]
[1641127827309,0.35986674,47357.0,47356.0,0.01199821]
[1641127828113,0.35986674,47358.0,47356.0,0.01199821]
[1641127828612,0.35986674,47358.0,47353.0,0.02111332]
[1641127828811,0.35986674,47357.0,47353.0,0.02111332]
[1641127829012,0.35986674,47357.0,47356.0,0.192]
[1641127830317,0.740297,47359.0,47353.0,0.02111332]
[1641127830519,0.59996133,47358.0,47353.0,0.02111332]
[1641127830815,0.59996133,47358.0,47353.0,0.20811332]
[1641127831016,0.59996133,47358.0,47354.0,0.01199797]
[1641127831216,0.35984894,47356.0,47354.0,0.01199797]
[1641127832818,0.35984894,47356.0,47354.0,0.20599797]
[1641127833218,0.35984894,47356.0,47354.0,0.194]
[1641127834118,0.35984894,47356.0,47353.0,0.02111332]
[1641127834519,0.35984894,47356.0,47354.0,0.01199809]
[1641127836821,0.35984894,47356.0,47355.0,0.11998012]
[1641127837421,0.35984894,47356.0,47355.0,0.13197821]
[1641127837722,0.35984894,47357.0,47355.0,0.13197821]
[1641127838123,0.35984894,47357.0,47356.0,0.11998012]
[1641127838322,0.35984894,47357.0,47356.0,0.13197821]
[1641127838922,0.35984894,47357.0,47356.0,0.32097821]
[1641127839624,0.35984894,47358.0,47356.0,0.32097821]
[1641127840024,0.35984894,47358.0,47357.0,0.11998012]
[1641127840425,0.35984894,47358.0,47353.0,0.02111332]
[1641127840426,0.740297,47359.0,47354.0,0.11998012]
[1641127840825,0.740297,47359.0,47355.0,0.01199773]
[1641127841026,0.890297,47359.0,47355.0,0.01199773]
[1641127841228,0.890297,47359.0,47356.0,0.11998012]
[1641127842228,0.740297,47359.0,47356.0,0.11998012]
[1641127842628,0.740297,47359.0,47354.0,0.11998012]
[1641127842828,0.740297,47359.0,47357.0,0.11998012]
[1641127843028,0.744297,47359.0,47357.0,0.11998012]
[1641127843430,0.744297,47359.0,47356.0,0.191]
[1641127843829,0.744297,47359.0,47357.0,0.13197737]
[1641127844032,0.14433567,47359.0,47357.0,0.13197737]
[1641127844431,0.14033567,47359.0,47357.0,0.11998012]
[1641127844831,0.14033567,47359.0,47354.0,0.11998012]
[1641127845032,0.18833567,47359.0,47358.0,0.92931692]
[1641127846033,0.788297,47359.0,47358.0,0.11998012]
[1641127846232,0.740297,47359.0,47358.0,0.11998012]
[1641127846632,0.14033567,47359.0,47358.0,0.11998012]
[1641127846834,0.23033662,47359.0,47358.0,0.11998012]
[1641127847032,0.39233662,47359.0,47358.0,0.30698012]
[1641127847231,0.39233662,47359.0,47358.0,0.187]
[1641127847632,0.39233662,47359.0,47358.0,0.30698012]
[1641127848231,0.23033662,47359.0,47358.0,0.13197724]
[1641127848632,1.07031212,47359.0,47358.0,0.13197724]
[1641127849034,1.07031212,47359.0,47358.0,0.31298012]
[1641127849232,0.14033567,47359.0,47358.0,0.31298012]
[1641127849433,0.74030175,47359.0,47358.0,0.193]
[1641127850134,0.14033567,47359.0,47358.0,0.193]
[1641127850336,0.14033567,47359.0,47354.0,0.009794]
[1641127850337,0.23033726,47359.0,47354.0,0.009794]
[1641127850633,0.23033726,47359.0,47355.0,0.01199789]
[1641127850834,0.23033726,47359.0,47355.0,0.13197671]
[1641127851234,0.93001615,47358.0,47356.0,0.11997882]
[1641127851633,0.93001615,47358.0,47355.0,0.11997882]
[1641127852035,0.93001615,47358.0,47356.0,0.01199741]
[1641127852435,0.93001615,47358.0,47357.0,0.11997882]
[1641127852841,0.84001456,47358.0,47357.0,0.13197623]
[1641127853036,0.84001456,47358.0,47357.0,0.32697623]
[1641127853236,0.14033567,47359.0,47357.0,0.32697623]
[1641127853639,0.14033567,47359.0,47357.0,0.31497882]
[1641127853837,0.14033567,47359.0,47358.0,0.11997882]
[1641127854639,0.23033219,47359.0,47355.0,0.11997882]
[1641127854840,0.23033219,47359.0,47358.0,0.11997882]
[1641127855139,0.33233219,47359.0,47358.0,0.193]
[1641127855340,0.24233567,47359.0,47358.0,0.193]
[1641127855540,0.24233567,47359.0,47358.0,0.31297882]
[1641127856245,0.24233567,47359.0,47358.0,0.11997882]
[1641127856443,0.14033567,47359.0,47358.0,0.11997882]
[1641127856941,0.14033567,47359.0,47354.0,0.11997882]
[1641127857141,0.27233567,47359.0,47358.0,0.30997882]
[1641127857354,0.27233567,47359.0,47358.0,0.19]
[1641127857642,0.27233567,47359.0,47358.0,0.30997882]
[1641127858441,0.14033567,47359.0,47358.0,0.11997882]
[1641127859041,0.26133567,47359.0,47358.0,0.191]
[1641127859441,0.26133567,47359.0,47358.0,0.31097882]
[1641127860442,0.14033567,47359.0,47358.0,0.11997882]
[1641127861042,0.14033567,47359.0,47358.0,0.31597882]
[1641127861242,0.14033567,47359.0,47358.0,0.27327]
[1641127861644,0.14033567,47359.0,47358.0,0.39324882]
[1641127862446,0.14033567,47359.0,47358.0,0.19724882]
[1641127862648,0.14033567,47359.0,47358.0,0.11997882]
[1641127863049,0.14033567,47359.0,47358.0,0.31597882]
[1641127863353,0.14033567,47359.0,47358.0,0.196]
[1641127863551,0.14033567,47359.0,47358.0,0.31597882]
[1641127864552,0.14033567,47359.0,47358.0,0.11997882]
[1641127864959,0.14033567,47359.0,47354.0,0.11997882]
[1641127865159,0.18133567,47359.0,47358.0,0.196]
[1641127865561,0.18133567,47359.0,47358.0,0.31597882]
[1641127866466,0.14033567,47359.0,47358.0,0.11997882]
[1641127866863,0.14033567,47359.0,47354.0,0.11997882]
[1641127867064,0.24533567,47359.0,47358.0,0.31397882]
[1641127867364,0.24533567,47359.0,47358.0,0.194]
[1641127867768,0.24533567,47359.0,47358.0,0.31397882]
[1641127868466,0.14033567,47359.0,47358.0,0.11997882]
[1641127869069,0.25933567,47359.0,47358.0,0.191]
[1641127869466,0.25933567,47359.0,47358.0,0.31097882]
[1641127870466,0.14033567,47359.0,47358.0,0.11997882]
[1641127870666,1.07023295,47359.0,47358.0,0.11997882]
[1641127870868,1.07023295,47359.0,47352.0,0.11997882]
[1641127871066,1.12923295,47359.0,47358.0,0.195]
[1641127871269,1.12923295,47359.0,47358.0,0.31497882]
[1641127871966,1.03923425,47359.0,47358.0,0.31497882]
[1641127872369,0.98023425,47359.0,47358.0,0.11997882]
[1641127872769,0.23033357,47359.0,47352.0,0.11997882]
[1641127873170,0.23033357,47359.0,47358.0,0.196]
[1641127873570,0.14033567,47359.0,47358.0,0.31597882]
[1641127874972,0.14033567,47359.0,47358.0,0.11997882]
[1641127875171,0.17733567,47359.0,47358.0,0.31597882]
[1641127875774,1.10723497,47359.0,47358.0,0.31597882]
[1641127876273,0.26733639,47359.0,47358.0,0.31597882]
[1641127876476,0.23033639,47359.0,47358.0,0.11997882]
[1641127876777,0.23033639,47359.0,47351.0,0.15012967]
[1641127877175,0.35233639,47359.0,47358.0,0.191]
[1641127878278,0.35233639,47359.0,47349.0,1.40698516]
[1641127878279,0.55340363,47359.0,47349.0,1.38587015]
[1641127878477,0.17998962,47348.0,47342.0,2.3196623]
[1641127878679,0.18,47343.0,47342.0,2.128692]
[1641127879778,0.18,47346.0,47340.0,0.6296746]
[1641127880376,0.14033567,47341.0,47340.0,0.6296746]
[1641127880982,0.14033567,47341.0,47334.0,0.19716737]
[1641127880983,0.14033567,47341.0,47336.0,0.6296746]
[1641127881179,0.32733567,47341.0,47336.0,0.6296746]
[1641127881777,0.32733567,47341.0,47334.0,0.6394686]
[1641127882180,0.32733567,47341.0,47337.0,0.02112021]
[1641127882580,0.14033567,47341.0,47337.0,0.02112021]
[1641127883081,0.32633567,47341.0,47337.0,0.02112021]
[1641127883580,0.32633567,47341.0,47334.0,0.009794]
[1641127883781,0.32633567,47341.0,47336.0,0.02112077]
[1641127884082,0.32633567,47341.0,47340.0,1.40153638]
[1641127884485,0.14033567,47341.0,47340.0,1.40153638]
[1641127884682,0.14033567,47341.0,47339.0,1.40153638]
[1641127885084,0.32733567,47341.0,47339.0,1.40153638]
[1641127885683,0.32733567,47341.0,47338.0,1.40153638]
[1641127886483,0.14033567,47341.0,47338.0,1.40153638]
[1641127887086,0.32233567,47341.0,47338.0,1.40153638]
[1641127888485,0.14033567,47341.0,47338.0,1.40153638]
[1641127888685,0.14033567,47341.0,47334.0,0.009794]
[1641127888686,0.50038101,47341.0,47336.0,1.40153638]
[1641127889084,0.67938101,47341.0,47336.0,1.40153638]
[1641127889486,0.31933567,47341.0,47338.0,1.40153638]
[1641127890485,0.14033567,47345.0,47340.0,0.81698287]
[1641127890885,0.18,47343.0,47340.0,0.81698287]
[1641127891287,0.32633567,47345.0,47341.0,0.58261845]
[1641127892486,0.28067134,47345.0,47341.0,0.58261845]
[1641127893087,0.18,47342.0,47341.0,0.58261845]
[1641127893587,0.46667134,47345.0,47341.0,0.58261845]
[1641127893988,0.46667134,47345.0,47342.0,0.01200082]
[1641127894188,0.46667134,47345.0,47342.0,0.13200907]
[1641127894489,0.28067134,47345.0,47342.0,0.01200082]
[1641127894688,0.28067134,47345.0,47340.0,0.58261845]
[1641127895089,0.46667134,47345.0,47341.0,0.0120011]
[1641127895288,0.46667134,47345.0,47341.0,0.0962511]
[1641127895689,0.46667134,47345.0,47342.0,0.13200559]
[1641127896090,0.46667134,47345.0,47339.0,0.58261845]
[1641127896290,0.46667134,47345.0,47341.0,0.58261845]
[1641127896491,0.28067134,47345.0,47341.0,0.58261845]
[1641127896689,0.28067134,47345.0,47343.0,0.01200055]
[1641127897090,0.46967134,47345.0,47342.0,0.01200055]
[1641127897290,0.46967134,47345.0,47341.0,0.58261845]
[1641127897492,0.46967134,47345.0,47343.0,0.01200059]
[1641127897690,0.46967134,47345.0,47342.0,0.01200059]
[1641127897890,0.46967134,47345.0,47340.0,0.58261845]
[1641127898090,0.18,47344.0,47340.0,0.58261845]
[1641127898290,0.18,47344.0,47343.0,0.01200069]
[1641127898491,0.18,47344.0,47341.0,0.13200781]
[1641127898690,0.18,47344.0,47343.0,0.01200069]
[1641127898890,0.18,47344.0,47342.0,0.01200069]
[1641127899090,0.366,47344.0,47342.0,0.01200069]
[1641127899292,0.366,47344.0,47341.0,0.01200069]
[1641127900093,0.186,47344.0,47341.0,0.01200069]
[1641127900294,0.366,47344.0,47341.0,0.01200069]
[1641127900492,0.18,47344.0,47341.0,0.01200069]
[1641127900895,0.18,47344.0,47340.0,0.01200069]
[1641127901093,0.18,47344.0,47342.0,0.01200069]
[1641127901294,0.18,47343.0,47341.0,0.01200069]
[1641127901894,0.18,47343.0,47340.0,0.59461914]
[1641127902094,0.18,47343.0,47340.0,0.58261845]
[1641127902697,0.18,47342.0,47340.0,0.58261845]
[1641127902896,0.18,47342.0,47337.0,0.58261845]
[1641127903196,0.368,47342.0,47337.0,0.58261845]
[1641127903395,0.368,47342.0,47338.0,0.13201481]
[1641127903795,0.368,47342.0,47339.0,0.01200135]
[1641127904496,0.18,47342.0,47338.0,0.01200135]
[1641127904696,0.14033567,47340.0,47338.0,0.01200135]
[1641127904995,0.14033567,47340.0,47337.0,0.58261845]
[1641127905199,0.32933567,47340.0,47337.0,0.58261845]
[1641127905597,0.32933567,47340.0,47338.0,0.12001434]
[1641127905798,0.32933567,47340.0,47337.0,0.58261845]
[1641127906397,0.32933567,47340.0,47339.0,0.3500402]
[1641127907800,0.32933567,47340.0,47338.0,0.3500402]
[1641127908398,0.32933567,47340.0,47337.0,0.93265865]
[1641127908598,0.14033567,47340.0,47337.0,0.3500402]
[1641127909298,0.32933567,47340.0,47337.0,0.3500402]
[1641127910599,0.14033567,47340.0,47337.0,0.3500402]
[1641127911301,0.32933567,47340.0,47337.0,0.3500402]
[1641127911501,0.32933567,47340.0,47338.0,0.12001547]
[1641127912605,0.14033567,47340.0,47338.0,0.12001547]
[1641127913206,0.33333567,47340.0,47338.0,0.12001547]
[1641127915106,0.14033567,47340.0,47338.0,0.12001547]
[1641127915306,0.33133567,47340.0,47338.0,0.12001547]
[1641127916208,0.33133567,47340.0,47335.0,0.12001547]
[1641127916706,0.14033567,47340.0,47335.0,0.12001547]
[1641127917307,0.33333567,47340.0,47335.0,0.12001547]
[1641127918707,0.14033567,47340.0,47335.0,0.12001547]
[1641127919309,0.33433567,47340.0,47335.0,0.12001547]
[1641127920110,0.33433567,47340.0,47336.0,0.01200127]
[1641127920511,0.14033567,47340.0,47336.0,0.01200127]
[1641127920814,0.14033567,47340.0,47337.0,0.12001547]
[1641127921224,0.33033567,47340.0,47337.0,0.12001547]
[1641127921422,0.33033567,47340.0,47338.0,0.01200127]
[1641127921823,0.33033567,47340.0,47339.0,0.12001547]
[1641127922222,0.33033567,47340.0,47339.0,0.13201674]
[1641127923222,0.33133567,47340.0,47339.0,0.13201674]
[1641127924022,0.33133567,47340.0,47339.0,0.31201674]
[1641127924223,0.84009828,47344.0,47339.0,0.31201674]
[1641127924424,0.84009828,47344.0,47341.0,0.18]
[1641127924823,0.84009828,47344.0,47342.0,0.13201674]
[1641127925424,0.84009828,47344.0,47343.0,0.13201674]
[1641127925824,0.14033567,47345.0,47343.0,0.13201674]
[1641127926226,0.14033567,47345.0,47344.0,0.13201674]
[1641127927230,0.15733567,47345.0,47344.0,0.32301674]
[1641127928632,0.32033567,47345.0,47344.0,0.13201674]
[1641127929231,0.49933567,47345.0,47344.0,0.17400127]
[1641127929532,0.58936291,47345.0,47344.0,0.17400127]
[1641127929731,0.58936291,47345.0,47344.0,0.162]
[1641127930534,1.25046119,47345.0,47342.0,0.81767417]
[1641127930735,0.18,47344.0,47342.0,0.81767417]
[1641127930934,1.07046119,47345.0,47342.0,0.81767417]
[1641127931138,0.09002724,47344.0,47342.0,0.81767417]
[1641127931334,0.45602724,47344.0,47342.0,0.98767417]
[1641127932042,0.366,47344.0,47342.0,0.98767417]
[1641127932441,0.186,47344.0,47342.0,0.98767417]
[1641127932643,0.98043395,47345.0,47342.0,0.81767417]
[1641127933242,0.18,47344.0,47342.0,0.99467417]
[1641127934541,0.18,47344.0,47342.0,0.81767417]
[1641127934743,0.14033567,47343.0,47342.0,0.81767417]
[1641127935142,0.14033567,47343.0,47342.0,0.93768819]
[1641127935345,0.91922799,47343.0,47342.0,0.30101402]
[1641127935742,0.31933567,47343.0,47342.0,0.30101402]
[1641127935942,0.40936503,47343.0,47342.0,0.181]
[1641127936343,0.40936503,47343.0,47342.0,0.30101294]
[1641127936543,0.23036503,47343.0,47342.0,0.12001294]
[1641127936944,0.23036503,47343.0,47336.0,0.12001294]
[1641127937145,0.23036503,47343.0,47342.0,0.12001294]
[1641127937345,0.40836503,47343.0,47342.0,0.18]
[1641127937545,0.40836503,47343.0,47342.0,0.30001294]
[1641127938848,0.23036503,47343.0,47342.0,0.12001294]
[1641127939247,0.40836503,47343.0,47342.0,0.18]
[1641127939446,0.40836503,47343.0,47342.0,0.30001294]
[1641127940648,0.40836503,47343.0,47335.0,1.40153638]
[1641127940848,0.23036503,47343.0,47335.0,1.40153638]
[1641127941048,0.23036503,47343.0,47336.0,0.12001717]
[1641127941253,0.40336503,47343.0,47336.0,0.12001717]
[1641127941549,0.36010532,47339.0,47336.0,0.13201889]
[1641127941750,0.36010532,47339.0,47337.0,0.01200172]
[1641127942250,0.36010532,47339.0,47337.0,0.13201889]
[1641127942449,1.44042129,47340.0,47337.0,0.13201889]
[1641127942649,0.60017554,47339.0,47338.0,0.12001717]
[1641127942851,0.60017554,47339.0,47338.0,0.13201889]
[1641127943156,0.60017554,47339.0,47338.0,0.12001717]
[1641127943350,0.85425554,47339.0,47338.0,0.30201717]
[1641127943550,0.85425554,47339.0,47338.0,0.182]
[1641127943954,0.25408,47339.0,47338.0,0.30201717]
[1641127944151,0.43408,47339.0,47338.0,0.30201717]
[1641127944352,1.27432575,47339.0,47338.0,0.30201717]
[1641127944554,1.09732575,47339.0,47338.0,0.12001717]
[1641127944952,1.09732575,47339.0,47332.0,1.40153638]
[1641127945152,0.14033567,47334.0,47330.0,1.40153638]
[1641127945352,0.14033567,47334.0,47333.0,0.13203269]
[1641127945554,0.14033567,47334.0,47331.0,0.13203269]
[1641127945752,0.14033567,47334.0,47333.0,0.12002972]
[1641127946155,0.14033567,47334.0,47332.0,0.12002972]
[1641127946355,0.14033567,47334.0,47333.0,0.12002972]
[1641127946756,0.74059311,47334.0,47333.0,0.12002972]
[1641127946955,0.74059311,47334.0,47330.0,0.12002972]
[1641127947156,0.23038073,47334.0,47333.0,0.12002972]
[1641127947371,0.37438073,47334.0,47333.0,0.193]
[1641127947755,0.37438073,47334.0,47333.0,0.31302972]
[1641127948356,0.37438073,47334.0,47333.0,0.32503255]
[1641127948757,0.23038073,47334.0,47333.0,0.13203255]
[1641127948957,0.14033567,47334.0,47333.0,0.13203255]
[1641127949360,0.83658491,47334.0,47333.0,0.32603255]
[1641127949961,0.23633567,47334.0,47333.0,0.32603255]
[1641127950760,0.14033567,47334.0,47333.0,0.13203255]
[1641127951260,0.25333567,47334.0,47333.0,0.32603255]
[1641127952460,0.85358491,47334.0,47333.0,0.32603255]
[1641127953160,0.74058491,47334.0,47333.0,0.13203255]
[1641127953363,0.85358491,47334.0,47333.0,0.32603255]
[1641127954765,0.14033567,47334.0,47333.0,0.13203255]
[1641127955276,0.24933567,47334.0,47333.0,0.32603255]
[1641127956178,0.24933567,47334.0,47333.0,0.31402972]
[1641127956580,0.14033567,47334.0,47333.0,0.12002972]
[1641127956780,0.74058491,47334.0,47333.0,0.13203203]
[1641127957280,0.60024924,47334.0,47333.0,0.33003203]
[1641127957681,0.60024924,47336.0,47333.0,0.33003203]
[1641127958079,0.60024924,47336.0,47334.0,0.12002972]
[1641127958280,0.60024924,47336.0,47334.0,0.13203203]
[1641127958479,0.3601394,47335.0,47334.0,0.12002972]
[1641127959282,0.3601394,47339.0,47334.0,0.188]
[1641127959680,0.3601394,47339.0,47335.0,0.12002972]
[1641127960581,0.3601394,47338.0,47335.0,0.12002972]
[1641127961080,0.3601394,47338.0,47332.0,0.12002972]
[1641127961381,0.5441394,47338.0,47335.0,0.18]
[1641127961582,0.184,47338.0,47335.0,0.18]
[1641127961784,0.184,47338.0,47336.0,0.12002972]
[1641127962583,0.3601394,47339.0,47336.0,0.12002972]
[1641127963184,0.3601394,47339.0,47332.0,0.12002972]
[1641127963483,0.5371394,47339.0,47337.0,0.12002972]
[1641127963682,0.5371394,47339.0,47336.0,0.182]
[1641127963884,0.5371394,47339.0,47338.0,0.12002972]
[1641127964083,0.5371394,47339.0,47337.0,0.12002972]
[1641127964484,0.5371394,47339.0,47338.0,0.12002972]
[1641127964684,0.3601394,47339.0,47338.0,0.12002972]
[1641127964886,0.3601394,47339.0,47337.0,0.12002972]
[1641127965085,0.3601394,47339.0,47338.0,0.12002972]
[1641127965386,0.5411394,47339.0,47338.0,0.183]
[1641127965587,0.5411394,47339.0,47338.0,0.30302972]
[1641127967285,0.7181394,47339.0,47338.0,0.48302972]
[1641127968586,0.5371394,47339.0,47338.0,0.12002972]
[1641127968788,0.3601394,47339.0,47338.0,0.12002972]
[1641127968987,0.60024924,47340.0,47338.0,0.12002972]
[1641127969189,0.60024924,47340.0,47331.0,0.12002972]
[1641127969390,0.169,47339.0,47338.0,0.175]
[1641127970588,0.60024924,47340.0,47330.0,1.58153638]
[1641127971188,0.60024924,47340.0,47331.0,0.12002096]
[1641127971387,0.78524924,47340.0,47331.0,0.12002096]
[1641127971689,0.35994999,47338.0,47331.0,0.12002096]
[1641127972790,0.35994999,47338.0,47334.0,0.18]
[1641127973192,0.35994999,47338.0,47337.0,0.2011204]
[1641127973393,0.35994999,47338.0,47337.0,0.43294607]
[1641127973593,0.35994999,47338.0,47337.0,1.66396703]
[1641127973793,0.35994999,47340.0,47337.0,1.67596762]
[1641127974194,0.35994999,47340.0,47338.0,0.01200059]
[1641127974497,0.60024924,47342.0,47338.0,0.13202155]
[1641127974695,0.14033567,47343.0,47341.0,0.18]
[1641127975097,0.14033567,47343.0,47342.0,0.12002096]
[1641127975298,0.14033567,47343.0,47342.0,0.13202155]
[1641127977003,0.14033567,47343.0,47342.0,0.12002096]
[1641127977400,0.14033567,47343.0,47342.0,0.31002096]
[1641127977600,0.14033567,47343.0,47342.0,0.19]
[1641127977801,0.14033567,47343.0,47342.0,0.32202207]
[1641127978001,0.14033567,47343.0,47342.0,0.31002096]
[1641127978204,0.14033567,47343.0,47342.0,0.32202198]
[1641127978604,0.14033567,47343.0,47342.0,0.13202198]
[1641127978804,0.14033567,47343.0,47342.0,0.12002096]
[1641127979204,0.14033567,47343.0,47338.0,0.12002096]
[1641127979405,0.27733567,47343.0,47342.0,0.31302096]
[1641127979606,0.27733567,47343.0,47342.0,0.193]
[1641127979804,0.27733567,47343.0,47342.0,0.31302096]
[1641127980606,0.14033567,47343.0,47342.0,0.12002096]
[1641127981108,0.14033567,47343.0,47338.0,0.12002096]
[1641127981406,0.23186567,47343.0,47342.0,0.193]
[1641127981607,0.41186567,47343.0,47342.0,0.193]